[Event "GrandPrix_29.05"]
[Site "Chess.com"]
[Date "2020.05.29"]
[Round "6"]
[White "ly4o"]
[Black "haddinibilbaoo"]
[Result "0-1"]
[WhiteElo "2013"]
[BlackElo "2125"]
[TimeControl "600+2"]
[EndTime "11:48:28 PDT"]
[Termination "haddinibilbaoo won by resignation"]

1. d4 {[%clk 0:10:01.9]} 1... Nf6 {[%clk 0:09:58]} 2. c4 {[%clk 0:10:02.9]} 2...
g6 {[%clk 0:09:58]} 3. Nc3 {[%clk 0:10:03.9]} 3... Bg7 {[%clk 0:09:59.4]} 4. e4
{[%clk 0:10:04.8]} 4... d6 {[%clk 0:10:01]} 5. Be2 {[%clk 0:10:06.1]} 5... O-O
{[%clk 0:10:02.1]} 6. Be3 {[%clk 0:10:07.2]} 6... c6 {[%clk 0:10:00.8]} 7. g4
{[%clk 0:10:05.8]} 7... Qa5 {[%clk 0:10:00]} 8. f3 {[%clk 0:10:04.4]} 8... b5
{[%clk 0:09:27.4]} 9. g5 {[%clk 0:09:51.4]} 9... Nfd7 {[%clk 0:09:27.3]} 10.
cxb5 {[%clk 0:09:49.5]} 10... cxb5 {[%clk 0:09:28.2]} 11. Qd2 {[%clk 0:09:51.2]}
11... b4 {[%clk 0:08:51.3]} 12. Nd5 {[%clk 0:09:48.7]} 12... Nc6 {[%clk
0:08:52.6]} 13. Rc1 {[%clk 0:09:49.2]} 13... Ndb8 {[%clk 0:07:47.3]} 14. a3
{[%clk 0:09:48.1]} 14... e6 {[%clk 0:07:10.6]} 15. axb4 {[%clk 0:09:38.3]} 15...
Qd8 {[%clk 0:07:11]} 16. b5 {[%clk 0:09:36.5]} 16... Nxd4 {[%clk 0:06:54.6]} 17.
Bxd4 {[%clk 0:09:30.5]} 17... Bxd4 {[%clk 0:06:21.3]} 18. Qxd4 {[%clk
0:09:32.4]} 18... exd5 {[%clk 0:06:22.6]} 19. Qxd5 {[%clk 0:09:34.2]} 19... Qb6
{[%clk 0:06:23.9]} 20. Qxa8 {[%clk 0:09:22.3]} 20... Bb7 {[%clk 0:06:21.3]} 21.
Rc6 {[%clk 0:09:13.6]} 21... Nxc6 {[%clk 0:06:14.9]} 22. Qxf8+ {[%clk
0:09:13.4]} 22... Kxf8 {[%clk 0:06:15.7]} 23. bxc6 {[%clk 0:09:15.3]} 23... Bxc6
{[%clk 0:06:13.9]} 24. Nh3 {[%clk 0:09:16.4]} 24... Qxb2 {[%clk 0:06:10]} 25.
Kf2 {[%clk 0:09:17.1]} 25... a5 {[%clk 0:06:08.6]} 26. Nf4 {[%clk 0:09:14.1]}
26... a4 {[%clk 0:06:06]} 27. Nd3 {[%clk 0:09:10.9]} 27... Qd4+ {[%clk
0:06:04.5]} 28. Kg3 {[%clk 0:09:11.7]} 28... a3 {[%clk 0:05:59.2]} 29. Nc1
{[%clk 0:09:12.6]} 29... Qb2 {[%clk 0:05:52.1]} 30. Bc4 {[%clk 0:09:08.9]} 30...
Bd7 {[%clk 0:05:47.7]} 31. Nd3 {[%clk 0:09:05.1]} 31... Qd4 {[%clk 0:05:48.7]}
32. Rc1 {[%clk 0:09:00.8]} 32... a2 {[%clk 0:05:43.4]} 33. Bxa2 {[%clk
0:08:59.4]} 33... Qxd3 {[%clk 0:05:44.9]} 34. Rc7 {[%clk 0:08:57.2]} 34... Be6
{[%clk 0:05:34.7]} 35. Bxe6 {[%clk 0:08:56.9]} 35... fxe6 {[%clk 0:05:36.6]} 36.
Rxh7 {[%clk 0:08:58.4]} 36... Qe3 {[%clk 0:05:26.1]} 37. h4 {[%clk 0:08:57.5]}
37... d5 {[%clk 0:05:26.2]} 38. exd5 {[%clk 0:08:58.1]} 38... exd5 {[%clk
0:05:28.1]} 39. Rd7 {[%clk 0:08:59.7]} 39... d4 {[%clk 0:05:27.8]} 40. Rd5
{[%clk 0:08:59.2]} 40... d3 {[%clk 0:05:27.9]} 0-1

[Event "GrandPrix_29.05"]
[Site "Chess.com"]
[Date "2020.05.29"]
[Round "6"]
[White "RitvarsReimanis"]
[Black "SmirnovTimofey2000"]
[Result "0-1"]
[WhiteElo "2055"]
[BlackElo "2193"]
[TimeControl "600+2"]
[EndTime "11:48:47 PDT"]
[Termination "SmirnovTimofey2000 won by resignation"]

1. d4 {[%clk 0:10:01.9]} 1... d5 {[%clk 0:09:59.4]} 2. c4 {[%clk 0:10:02.7]}
2... c6 {[%clk 0:10:00.3]} 3. Nf3 {[%clk 0:10:01.3]} 3... Nf6 {[%clk 0:10:00.6]}
4. cxd5 {[%clk 0:10:01.2]} 4... cxd5 {[%clk 0:10:01.4]} 5. Nc3 {[%clk
0:10:02.1]} 5... Nc6 {[%clk 0:10:02.3]} 6. Bg5 {[%clk 0:10:03.1]} 6... Ne4
{[%clk 0:09:58.4]} 7. Bd2 {[%clk 0:09:25]} 7... Nxd2 {[%clk 0:09:46.4]} 8. Qxd2
{[%clk 0:09:24]} 8... Bf5 {[%clk 0:09:43.7]} 9. Nh4 {[%clk 0:09:22.1]} 9... Bg6
{[%clk 0:09:32.8]} 10. e3 {[%clk 0:09:20.7]} 10... e6 {[%clk 0:09:31.1]} 11.
Nxg6 {[%clk 0:09:21.7]} 11... hxg6 {[%clk 0:09:33]} 12. Bb5 {[%clk 0:09:19.4]}
12... Qb6 {[%clk 0:09:33.6]} 13. O-O-O {[%clk 0:09:18]} 13... Bb4 {[%clk
0:09:29.7]} 14. Bd3 {[%clk 0:09:17.4]} 14... Rc8 {[%clk 0:09:24.9]} 15. Kb1
{[%clk 0:09:16.6]} 15... Nxd4 {[%clk 0:09:02.6]} 16. exd4 {[%clk 0:09:17.4]}
16... Bxc3 {[%clk 0:08:57.3]} 17. Qe2 {[%clk 0:09:17.4]} 17... Ke7 {[%clk
0:08:24.8]} 18. Bb5 {[%clk 0:08:50.5]} 18... Bxd4 {[%clk 0:08:22.3]} 19. Ba4
{[%clk 0:08:51.8]} 19... Rhd8 {[%clk 0:07:59.3]} 20. Bb3 {[%clk 0:08:49.5]}
20... a5 {[%clk 0:07:44.9]} 21. h4 {[%clk 0:08:48.6]} 21... Qb4 {[%clk
0:07:33.8]} 22. Qg4 {[%clk 0:08:46.1]} 22... Bf6 {[%clk 0:07:26.2]} 23. Qxb4+
{[%clk 0:08:44]} 23... axb4 {[%clk 0:07:28.1]} 24. h5 {[%clk 0:08:44.2]} 24...
gxh5 {[%clk 0:07:28.2]} 25. Rxh5 {[%clk 0:08:46.1]} 25... g6 {[%clk 0:07:27.5]}
26. Rh3 {[%clk 0:08:45.7]} 26... Rh8 {[%clk 0:07:15.5]} 27. Rf3 {[%clk
0:08:46.8]} 27... Be5 {[%clk 0:06:58.5]} 28. Re3 {[%clk 0:08:42.6]} 28... Kd6
{[%clk 0:06:55.4]} 29. g3 {[%clk 0:08:25.8]} 29... Rh2 {[%clk 0:06:52.5]} 30.
Rd2 {[%clk 0:08:24.9]} 30... Rg2 {[%clk 0:06:14.7]} 31. Bd1 {[%clk 0:08:24.3]}
31... Bg7 {[%clk 0:05:52.6]} 32. Re1 {[%clk 0:08:17.6]} 32... Bh6 {[%clk
0:05:46.9]} 33. Rc2 {[%clk 0:08:17.6]} 33... Rxc2 {[%clk 0:05:47.1]} 34. Kxc2
{[%clk 0:08:19.5]} 34... Rxf2+ {[%clk 0:05:47.7]} 35. Kb3 {[%clk 0:08:21.4]}
35... f5 {[%clk 0:05:43.4]} 36. g4 {[%clk 0:08:20.4]} 36... Bf4 {[%clk
0:05:34.4]} 37. gxf5 {[%clk 0:08:20.9]} 37... gxf5 {[%clk 0:05:35.5]} 38. Be2
{[%clk 0:08:15.3]} 38... Bd2 {[%clk 0:05:35.4]} 0-1

[Event "GrandPrix_29.05"]
[Site "Chess.com"]
[Date "2020.05.29"]
[Round "6"]
[White "Lukianoo"]
[Black "AsadliVugar"]
[Result "1-0"]
[WhiteElo "2618"]
[BlackElo "2375"]
[TimeControl "600+2"]
[EndTime "11:49:05 PDT"]
[Termination "Lukianoo won by resignation"]

1. e4 {[%clk 0:10:01.9]} 1... g6 {[%clk 0:09:44.7]} 2. d4 {[%clk 0:10:02.1]}
2... Bg7 {[%clk 0:09:46]} 3. Nc3 {[%clk 0:10:02.8]} 3... d6 {[%clk 0:09:47.3]}
4. Be2 {[%clk 0:10:03.9]} 4... a6 {[%clk 0:09:45.3]} 5. a4 {[%clk 0:10:04.2]}
5... Nf6 {[%clk 0:09:39.8]} 6. g4 {[%clk 0:10:04.8]} 6... Nc6 {[%clk 0:09:33]}
7. g5 {[%clk 0:10:03.9]} 7... Nd7 {[%clk 0:09:29.1]} 8. Be3 {[%clk 0:10:01.9]}
8... e5 {[%clk 0:09:29.8]} 9. Nf3 {[%clk 0:10:01.3]} 9... exd4 {[%clk
0:09:25.1]} 10. Nxd4 {[%clk 0:10:01.7]} 10... O-O {[%clk 0:09:14.6]} 11. h4
{[%clk 0:09:59.4]} 11... Re8 {[%clk 0:09:11.2]} 12. Qd2 {[%clk 0:09:47.3]} 12...
Nc5 {[%clk 0:08:55.8]} 13. f3 {[%clk 0:09:47.8]} 13... f5 {[%clk 0:08:15.9]} 14.
gxf6 {[%clk 0:09:33.9]} 14... Qxf6 {[%clk 0:08:04.5]} 15. Nd5 {[%clk 0:09:32.8]}
15... Qf7 {[%clk 0:08:04.9]} 16. h5 {[%clk 0:09:10.6]} 16... g5 {[%clk
0:07:06.7]} 17. h6 {[%clk 0:09:03.1]} 17... Bxd4 {[%clk 0:07:07.9]} 18. Bxd4
{[%clk 0:09:03.3]} 18... Nxd4 {[%clk 0:07:09.2]} 19. Qxd4 {[%clk 0:08:55.8]}
19... Re5 {[%clk 0:07:10]} 20. f4 {[%clk 0:08:46.9]} 20... Ne6 {[%clk
0:06:59.8]} 21. Qc3 {[%clk 0:08:12.3]} 21... gxf4 {[%clk 0:06:25.8]} 22. O-O-O
{[%clk 0:08:06.1]} 22... Bd7 {[%clk 0:06:22.6]} 23. Rdg1+ {[%clk 0:08:01.6]}
23... Kh8 {[%clk 0:06:23.5]} 24. Rh5 {[%clk 0:07:48.1]} 24... Rg8 {[%clk
0:06:11.8]} 25. Rxg8+ {[%clk 0:07:47]} 25... Kxg8 {[%clk 0:05:41.5]} 26. Rxe5
{[%clk 0:07:47.4]} 26... dxe5 {[%clk 0:05:30]} 27. Qxe5 {[%clk 0:07:48.2]} 27...
Kf8 {[%clk 0:05:09.1]} 28. Bh5 {[%clk 0:07:42.3]} 1-0

[Event "GrandPrix_29.05"]
[Site "Chess.com"]
[Date "2020.05.29"]
[Round "6"]
[White "rusuvlad95"]
[Black "FCLitras"]
[Result "1-0"]
[WhiteElo "2099"]
[BlackElo "1776"]
[TimeControl "600+2"]
[EndTime "11:50:09 PDT"]
[Termination "rusuvlad95 won by resignation"]

1. e4 {[%clk 0:10:01.9]} 1... c6 {[%clk 0:10:00.6]} 2. d4 {[%clk 0:10:02.7]}
2... d5 {[%clk 0:10:01.7]} 3. exd5 {[%clk 0:10:04.3]} 3... cxd5 {[%clk
0:10:02.7]} 4. Bd3 {[%clk 0:10:05.9]} 4... Nc6 {[%clk 0:10:02.7]} 5. c3 {[%clk
0:10:07.3]} 5... Qc7 {[%clk 0:10:03.9]} 6. h3 {[%clk 0:10:02.3]} 6... Nf6 {[%clk
0:10:03]} 7. Nf3 {[%clk 0:10:00.1]} 7... g6 {[%clk 0:09:59.2]} 8. O-O {[%clk
0:09:46.7]} 8... Bf5 {[%clk 0:09:50]} 9. Ne5 {[%clk 0:09:39.6]} 9... Bxd3 {[%clk
0:09:37.1]} 10. Nxd3 {[%clk 0:09:37.3]} 10... Bg7 {[%clk 0:09:35.4]} 11. Re1
{[%clk 0:09:33.4]} 11... O-O {[%clk 0:09:24]} 12. Bf4 {[%clk 0:09:34.7]} 12...
Qc8 {[%clk 0:09:19]} 13. Nd2 {[%clk 0:09:32]} 13... Re8 {[%clk 0:09:19]} 14. Qf3
{[%clk 0:09:28.2]} 14... e6 {[%clk 0:09:09.8]} 15. Re2 {[%clk 0:08:54.9]} 15...
Nd7 {[%clk 0:09:06.4]} 16. Rae1 {[%clk 0:08:44.2]} 16... b5 {[%clk 0:09:06]} 17.
Nb3 {[%clk 0:08:40.2]} 17... b4 {[%clk 0:09:02.1]} 18. Nxb4 {[%clk 0:08:37.5]}
18... Nxb4 {[%clk 0:08:57.5]} 19. cxb4 {[%clk 0:08:38.8]} 19... Qb7 {[%clk
0:08:48.6]} 20. a3 {[%clk 0:08:38.4]} 20... Qb5 {[%clk 0:08:36.3]} 21. Rc2
{[%clk 0:08:30.5]} 21... Nb6 {[%clk 0:08:34.4]} 22. Rc7 {[%clk 0:08:24]} 22...
Nc4 {[%clk 0:08:21.3]} 23. Bh6 {[%clk 0:08:03.1]} 23... Rf8 {[%clk 0:08:08.8]}
24. Bxg7 {[%clk 0:07:54]} 24... Kxg7 {[%clk 0:08:10.7]} 25. Rxe6 {[%clk
0:07:54.9]} 25... Rac8 {[%clk 0:07:51.9]} 26. Qf6+ {[%clk 0:07:49.7]} 26... Kg8
{[%clk 0:07:52.7]} 27. Rxa7 {[%clk 0:06:46.1]} 27... Nxb2 {[%clk 0:07:29.1]} 28.
Nc5 {[%clk 0:06:39.2]} 28... Nd3 {[%clk 0:07:02.9]} 29. Ree7 {[%clk 0:05:29.8]}
29... Rc6 {[%clk 0:06:33]} 30. Rxf7 {[%clk 0:05:23.3]} 30... Re6 {[%clk
0:06:25.3]} 1-0

[Event "GrandPrix_29.05"]
[Site "Chess.com"]
[Date "2020.05.29"]
[Round "6"]
[White "Gabix_94"]
[Black "Tyoma88888"]
[Result "1-0"]
[WhiteElo "2433"]
[BlackElo "2184"]
[TimeControl "600+2"]
[EndTime "11:50:21 PDT"]
[Termination "Gabix_94 won by resignation"]

1. d4 {[%clk 0:09:33.5]} 1... d5 {[%clk 0:10:00.5]} 2. c4 {[%clk 0:09:33.6]}
2... e6 {[%clk 0:10:01.6]} 3. Nf3 {[%clk 0:09:33.6]} 3... Nf6 {[%clk 0:10:01.5]}
4. Nc3 {[%clk 0:09:33.7]} 4... c5 {[%clk 0:10:02.3]} 5. e3 {[%clk 0:09:32.5]}
5... cxd4 {[%clk 0:10:00.6]} 6. exd4 {[%clk 0:09:32.5]} 6... dxc4 {[%clk
0:10:02.1]} 7. Bxc4 {[%clk 0:09:34.2]} 7... Be7 {[%clk 0:10:03.1]} 8. O-O {[%clk
0:09:33.8]} 8... O-O {[%clk 0:10:04.3]} 9. Re1 {[%clk 0:09:34.1]} 9... Nc6
{[%clk 0:10:01.2]} 10. a3 {[%clk 0:09:34.2]} 10... Qb6 {[%clk 0:10:00.5]} 11.
Be3 {[%clk 0:09:13.2]} 11... Ng4 {[%clk 0:09:41.9]} 12. d5 {[%clk 0:08:58.4]}
12... Nxe3 {[%clk 0:09:42.1]} 13. Rxe3 {[%clk 0:09:00.3]} 13... Na5 {[%clk
0:09:35.5]} 14. Ba2 {[%clk 0:08:58.1]} 14... Rd8 {[%clk 0:08:02]} 15. Qe2 {[%clk
0:08:56.8]} 15... Bc5 {[%clk 0:07:18.2]} 16. Na4 {[%clk 0:08:55.5]} 16... Bxe3
{[%clk 0:05:41.6]} 17. Nxb6 {[%clk 0:08:55]} 17... Bxb6 {[%clk 0:05:43.5]} 18.
b4 {[%clk 0:08:55.7]} 18... exd5 {[%clk 0:05:43.5]} 19. bxa5 {[%clk 0:08:55.9]}
19... Bxa5 {[%clk 0:05:45.4]} 20. Bxd5 {[%clk 0:08:50.9]} 20... Bg4 {[%clk
0:05:29.3]} 21. Bxf7+ {[%clk 0:08:49.9]} 21... Kh8 {[%clk 0:05:30.6]} 22. h3
{[%clk 0:08:43]} 22... Bxf3 {[%clk 0:05:22.6]} 23. Qxf3 {[%clk 0:08:44.9]} 23...
Rf8 {[%clk 0:05:23.4]} 24. Qh5 {[%clk 0:08:44.8]} 24... Bb6 {[%clk 0:05:22.8]}
25. Rd1 {[%clk 0:08:41]} 25... Rac8 {[%clk 0:05:19.9]} 26. Bg6 {[%clk
0:08:17.1]} 26... Bxf2+ {[%clk 0:05:17.5]} 27. Kh2 {[%clk 0:08:17.2]} 27... h6
{[%clk 0:05:19.4]} 28. Bb1 {[%clk 0:08:08.5]} 28... Rc6 {[%clk 0:05:20]} 29. Rf1
{[%clk 0:07:39.4]} 29... Rcf6 {[%clk 0:05:16.5]} 30. Rxf2 {[%clk 0:07:40.1]}
30... Rxf2 {[%clk 0:05:17.4]} 31. Qg6 {[%clk 0:07:41]} 31... Kg8 {[%clk
0:05:17.8]} 32. Qh7+ {[%clk 0:07:40.9]} 32... Kf7 {[%clk 0:05:18.9]} 33. Bg6+
{[%clk 0:07:42.5]} 33... Kf6 {[%clk 0:05:18]} 34. Bh5 {[%clk 0:07:43.3]} 34...
Rf4 {[%clk 0:05:13.3]} 35. Qg6+ {[%clk 0:07:43.1]} 35... Ke5 {[%clk 0:05:13.5]}
36. Qxg7+ {[%clk 0:07:44.4]} 36... Ke4 {[%clk 0:05:12.8]} 37. Qxb7+ {[%clk
0:07:46]} 37... Ke3 {[%clk 0:05:13.9]} 38. Qxa7+ {[%clk 0:07:47.4]} 38... Kd2
{[%clk 0:05:15.1]} 39. Bf3 {[%clk 0:07:46.2]} 39... R8f6 {[%clk 0:05:11.9]} 40.
Qf2+ {[%clk 0:07:45.7]} 40... Kd3 {[%clk 0:05:12.8]} 41. a4 {[%clk 0:07:44.5]}
41... Kc3 {[%clk 0:05:02.2]} 42. Qc5+ {[%clk 0:07:44.5]} 42... Kd2 {[%clk
0:05:02.1]} 43. a5 {[%clk 0:07:43.2]} 43... R6f5 {[%clk 0:05:02.6]} 44. Qf2+
{[%clk 0:07:43.1]} 44... Kc3 {[%clk 0:05:03.6]} 45. Qe3+ {[%clk 0:07:43.8]}
45... Kb4 {[%clk 0:05:04.2]} 46. a6 {[%clk 0:07:43.5]} 1-0

[Event "GrandPrix_29.05"]
[Site "Chess.com"]
[Date "2020.05.29"]
[Round "6"]
[White "WoodlandMagic"]
[Black "AnotherGrumpy"]
[Result "1-0"]
[WhiteElo "2073"]
[BlackElo "1825"]
[TimeControl "600+2"]
[EndTime "11:50:41 PDT"]
[Termination "WoodlandMagic won by resignation"]

1. d4 {[%clk 0:09:57.7]} 1... d5 {[%clk 0:09:50.2]} 2. c4 {[%clk 0:09:57.2]}
2... c6 {[%clk 0:09:51]} 3. Nf3 {[%clk 0:09:58.2]} 3... Nf6 {[%clk 0:09:50.5]}
4. Qc2 {[%clk 0:09:59.2]} 4... dxc4 {[%clk 0:09:50.1]} 5. Qxc4 {[%clk
0:09:59.9]} 5... Bf5 {[%clk 0:09:51.3]} 6. g3 {[%clk 0:09:59.5]} 6... e6 {[%clk
0:09:51.1]} 7. Bg2 {[%clk 0:10:00]} 7... Be7 {[%clk 0:09:51.6]} 8. O-O {[%clk
0:10:00.3]} 8... O-O {[%clk 0:09:53]} 9. e3 {[%clk 0:10:00.9]} 9... Nbd7 {[%clk
0:09:53.4]} 10. Qe2 {[%clk 0:10:01.8]} 10... h6 {[%clk 0:09:43.4]} 11. Rd1
{[%clk 0:09:46.9]} 11... Qc7 {[%clk 0:09:31.3]} 12. Nc3 {[%clk 0:09:44.1]} 12...
Ne4 {[%clk 0:09:22.6]} 13. Nd2 {[%clk 0:09:44.4]} 13... Nxc3 {[%clk 0:09:22.6]}
14. bxc3 {[%clk 0:09:43.2]} 14... e5 {[%clk 0:09:23.7]} 15. e4 {[%clk
0:09:42.7]} 15... Bg6 {[%clk 0:09:22.5]} 16. Nc4 {[%clk 0:09:39.8]} 16... exd4
{[%clk 0:09:21.5]} 17. cxd4 {[%clk 0:09:37.1]} 17... Rfe8 {[%clk 0:09:13.3]} 18.
Bf4 {[%clk 0:09:02.6]} 18... Qc8 {[%clk 0:09:13.1]} 19. Rac1 {[%clk 0:08:50.4]}
19... Nb6 {[%clk 0:09:08.3]} 20. Ne5 {[%clk 0:08:02.5]} 20... Bh7 {[%clk
0:08:48.2]} 21. a4 {[%clk 0:07:56.5]} 21... Bf6 {[%clk 0:08:37.7]} 22. a5 {[%clk
0:07:53.9]} 22... Nd7 {[%clk 0:08:29.7]} 23. Nc4 {[%clk 0:07:47.5]} 23... Be7
{[%clk 0:08:05.3]} 24. d5 {[%clk 0:07:01]} 24... c5 {[%clk 0:06:42.7]} 25. e5
{[%clk 0:06:56.5]} 25... Bf8 {[%clk 0:06:36.7]} 26. h4 {[%clk 0:06:45.9]} 26...
b5 {[%clk 0:06:20.6]} 27. axb6 {[%clk 0:06:17.4]} 27... axb6 {[%clk 0:06:20.1]}
28. e6 {[%clk 0:05:39.5]} 1-0

[Event "GrandPrix_29.05"]
[Site "Chess.com"]
[Date "2020.05.29"]
[Round "6"]
[White "Kostya_Nikologorskiy"]
[Black "Supernotar"]
[Result "1-0"]
[WhiteElo "2262"]
[BlackElo "2099"]
[TimeControl "600+2"]
[EndTime "11:50:43 PDT"]
[Termination "Kostya_Nikologorskiy won by checkmate"]

1. e4 {[%clk 0:10:01.7]} 1... c6 {[%clk 0:09:29.3]} 2. d4 {[%clk 0:09:59]} 2...
d5 {[%clk 0:09:24.8]} 3. Nc3 {[%clk 0:10:00.1]} 3... dxe4 {[%clk 0:09:25.4]} 4.
Nxe4 {[%clk 0:10:02]} 4... Bf5 {[%clk 0:09:26.6]} 5. Ng3 {[%clk 0:10:03.2]} 5...
Bg6 {[%clk 0:09:27.7]} 6. Bc4 {[%clk 0:10:04.3]} 6... e6 {[%clk 0:09:28.2]} 7.
h4 {[%clk 0:10:05.7]} 7... h6 {[%clk 0:09:28.9]} 8. N1e2 {[%clk 0:10:07]} 8...
Nf6 {[%clk 0:09:27.6]} 9. Nf4 {[%clk 0:10:06.9]} 9... Bh7 {[%clk 0:09:28.6]} 10.
Qe2 {[%clk 0:10:02.7]} 10... Nd5 {[%clk 0:09:29.1]} 11. c3 {[%clk 0:10:02.1]}
11... Bd6 {[%clk 0:09:22.7]} 12. Nfh5 {[%clk 0:09:59.2]} 12... O-O {[%clk
0:09:18.1]} 13. Qg4 {[%clk 0:09:52.2]} 13... Bg6 {[%clk 0:08:53.4]} 14. Bxd5
{[%clk 0:07:56.4]} 14... exd5 {[%clk 0:08:35]} 15. Nxg7 {[%clk 0:07:39.9]} 15...
Qe7+ {[%clk 0:07:57.7]} 16. Kd1 {[%clk 0:07:34.3]} 16... Bxg3 {[%clk 0:07:24.5]}
17. Nf5 {[%clk 0:07:28.1]} 17... Qf6 {[%clk 0:07:12.2]} 18. Nxh6+ {[%clk
0:07:13.7]} 18... Kh7 {[%clk 0:07:09.2]} 19. Qxg3 {[%clk 0:07:05.2]} 19... Bh5+
{[%clk 0:07:06]} 20. f3 {[%clk 0:07:02.3]} 20... Na6 {[%clk 0:06:55.8]} 21. Qg5
{[%clk 0:06:40.2]} 21... Bxf3+ {[%clk 0:06:40]} 22. gxf3 {[%clk 0:04:47.6]}
22... Qxf3+ {[%clk 0:06:40.3]} 23. Kc2 {[%clk 0:04:48.8]} 23... Qxh1 {[%clk
0:06:12.9]} 24. Nf5 {[%clk 0:04:48.4]} 24... Qe4+ {[%clk 0:06:12.6]} 25. Kb3
{[%clk 0:04:47.7]} 25... Nc5+ {[%clk 0:06:12.9]} 26. Ka3 {[%clk 0:04:47.5]}
26... Ne6 {[%clk 0:06:13]} 27. Qh6+ {[%clk 0:04:47.4]} 27... Kg8 {[%clk
0:06:13.1]} 28. Ne7# {[%clk 0:04:49.3]} 1-0

[Event "GrandPrix_29.05"]
[Site "Chess.com"]
[Date "2020.05.29"]
[Round "6"]
[White "Tokarev_Sergey"]
[Black "guylevin1"]
[Result "0-1"]
[WhiteElo "1996"]
[BlackElo "2096"]
[TimeControl "600+2"]
[EndTime "11:51:40 PDT"]
[Termination "guylevin1 won by resignation"]

1. c4 {[%clk 0:10:01.9]} 1... e5 {[%clk 0:09:56.3]} 2. Nc3 {[%clk 0:10:02.2]}
2... Bb4 {[%clk 0:09:56.4]} 3. g3 {[%clk 0:10:02]} 3... Bxc3 {[%clk 0:09:54.3]}
4. bxc3 {[%clk 0:10:03.9]} 4... Nf6 {[%clk 0:09:54]} 5. Bg2 {[%clk 0:10:03.2]}
5... d6 {[%clk 0:09:55.2]} 6. e3 {[%clk 0:10:03]} 6... O-O {[%clk 0:09:56.7]} 7.
Ne2 {[%clk 0:10:02.5]} 7... c5 {[%clk 0:09:57.3]} 8. O-O {[%clk 0:10:01.1]} 8...
Nc6 {[%clk 0:09:58.2]} 9. d4 {[%clk 0:09:51.4]} 9... Bd7 {[%clk 0:09:44.9]} 10.
Ba3 {[%clk 0:09:25.7]} 10... b6 {[%clk 0:09:39.7]} 11. dxc5 {[%clk 0:09:17.2]}
11... dxc5 {[%clk 0:09:38.8]} 12. Qd6 {[%clk 0:09:15.4]} 12... Rc8 {[%clk
0:09:32.3]} 13. Rad1 {[%clk 0:09:12.5]} 13... Na5 {[%clk 0:09:18.8]} 14. Bd5
{[%clk 0:08:55.3]} 14... Bg4 {[%clk 0:09:07]} 15. Qxd8 {[%clk 0:08:06]} 15...
Rfxd8 {[%clk 0:09:08.9]} 16. f3 {[%clk 0:08:02.7]} 16... Be6 {[%clk 0:09:07.1]}
17. e4 {[%clk 0:07:59.3]} 17... Nxc4 {[%clk 0:09:05.3]} 18. Bxe6 {[%clk
0:07:35.6]} 18... fxe6 {[%clk 0:08:54.6]} 19. Bc1 {[%clk 0:07:34.1]} 19... Kf7
{[%clk 0:08:53.8]} 20. Bg5 {[%clk 0:07:33.3]} 20... h6 {[%clk 0:08:50.2]} 21.
Bxf6 {[%clk 0:07:24.5]} 21... gxf6 {[%clk 0:08:50.5]} 22. Kf2 {[%clk 0:07:26]}
22... Nb2 {[%clk 0:08:45.8]} 23. Rb1 {[%clk 0:07:21.4]} 23... Rd2 {[%clk
0:08:44.2]} 24. Ke3 {[%clk 0:02:48.5]} 24... Rcd8 {[%clk 0:08:32.6]} 25. f4
{[%clk 0:02:35]} 25... Nd1+ {[%clk 0:07:42.9]} 26. Kf3 {[%clk 0:02:24.9]} 26...
R8d3+ {[%clk 0:07:42.3]} 27. Kg4 {[%clk 0:02:22.9]} 27... Ne3+ {[%clk
0:07:43.7]} 0-1

[Event "GrandPrix_29.05"]
[Site "Chess.com"]
[Date "2020.05.29"]
[Round "6"]
[White "Kildepiotr"]
[Black "KuzubovYuriy"]
[Result "0-1"]
[WhiteElo "2228"]
[BlackElo "2465"]
[TimeControl "600+2"]
[EndTime "11:51:45 PDT"]
[Termination "KuzubovYuriy won by resignation"]

1. Nf3 {[%clk 0:10:01.9]} 1... d5 {[%clk 0:10:00.5]} 2. g3 {[%clk 0:09:55.5]}
2... Bg4 {[%clk 0:10:00.5]} 3. Bg2 {[%clk 0:09:56.6]} 3... Nd7 {[%clk
0:10:01.7]} 4. O-O {[%clk 0:09:57.7]} 4... c6 {[%clk 0:09:56.3]} 5. d3 {[%clk
0:09:58.4]} 5... Ngf6 {[%clk 0:09:55.6]} 6. Nbd2 {[%clk 0:09:59.2]} 6... e5
{[%clk 0:09:51.9]} 7. e4 {[%clk 0:10:00.1]} 7... Bd6 {[%clk 0:09:52.1]} 8. h3
{[%clk 0:10:00.7]} 8... Bh5 {[%clk 0:09:53]} 9. Qe1 {[%clk 0:09:59.1]} 9... O-O
{[%clk 0:09:52.1]} 10. Nh4 {[%clk 0:09:59.2]} 10... Re8 {[%clk 0:09:30.1]} 11.
Nf5 {[%clk 0:09:59.3]} 11... Bc7 {[%clk 0:09:17.4]} 12. g4 {[%clk 0:09:59.4]}
12... Bg6 {[%clk 0:09:18]} 13. Ng3 {[%clk 0:10:00.1]} 13... Nc5 {[%clk
0:09:04.4]} 14. Nb3 {[%clk 0:09:52.6]} 14... Ne6 {[%clk 0:09:03.8]} 15. Qe2
{[%clk 0:09:47.8]} 15... a5 {[%clk 0:08:46.6]} 16. a4 {[%clk 0:09:47.4]} 16...
Bb6 {[%clk 0:07:19.8]} 17. g5 {[%clk 0:09:32.1]} 17... Nf4 {[%clk 0:06:56.1]}
18. Qf3 {[%clk 0:09:21.2]} 18... dxe4 {[%clk 0:06:38.5]} 19. dxe4 {[%clk
0:09:18.5]} 19... Nxe4 {[%clk 0:06:33.7]} 20. Bxf4 {[%clk 0:09:01.7]} 20... exf4
{[%clk 0:06:32.5]} 21. Qxf4 {[%clk 0:09:00]} 21... Nxg3 {[%clk 0:05:29.3]} 22.
Qxg3 {[%clk 0:08:59.7]} 22... Bxc2 {[%clk 0:05:26.6]} 23. h4 {[%clk 0:08:51.7]}
23... Re2 {[%clk 0:04:57.6]} 24. Bf3 {[%clk 0:08:49.8]} 24... Rxf2 {[%clk
0:04:47.3]} 25. Rxf2 {[%clk 0:08:50.5]} 25... Bxb3 {[%clk 0:04:47.4]} 26. Kg2
{[%clk 0:08:40.7]} 26... Bxf2 {[%clk 0:04:45]} 27. Qxf2 {[%clk 0:08:42.6]} 27...
Bd5 {[%clk 0:04:35.7]} 28. Rd1 {[%clk 0:08:39.9]} 28... Bxf3+ {[%clk 0:04:36.5]}
29. Qxf3 {[%clk 0:08:41.8]} 29... Qe7 {[%clk 0:04:35.7]} 30. Qd3 {[%clk
0:08:32.7]} 30... Re8 {[%clk 0:04:34.2]} 31. Kf2 {[%clk 0:08:26.7]} 31... h6
{[%clk 0:04:27]} 32. Rg1 {[%clk 0:08:19.4]} 32... Qc5+ {[%clk 0:04:23.6]} 33.
Kg2 {[%clk 0:08:16.7]} 33... hxg5 {[%clk 0:04:23.5]} 34. h5 {[%clk 0:08:17]}
34... Qd5+ {[%clk 0:04:04.8]} 35. Qxd5 {[%clk 0:08:16.9]} 35... cxd5 {[%clk
0:04:06.7]} 36. Kf3 {[%clk 0:08:16.6]} 36... f6 {[%clk 0:04:03]} 37. Rc1 {[%clk
0:08:15.3]} 37... d4 {[%clk 0:04:00.6]} 38. Rc7 {[%clk 0:08:13.8]} 38... Re3+
{[%clk 0:03:59.8]} 39. Kg4 {[%clk 0:08:14.4]} 39... Rb3 {[%clk 0:04:00.3]} 40.
Kf5 {[%clk 0:08:13.1]} 40... Kh7 {[%clk 0:03:55.3]} 41. Rd7 {[%clk 0:08:03.4]}
41... Rxb2 {[%clk 0:03:52.5]} 42. Rxd4 {[%clk 0:08:04]} 42... Rf2+ {[%clk
0:03:51.9]} 43. Ke6 {[%clk 0:08:04.7]} 43... Rf4 {[%clk 0:03:53]} 44. Rd7 {[%clk
0:08:03.3]} 44... Rxa4 {[%clk 0:03:52.1]} 45. Rxb7 {[%clk 0:08:03.1]} 45... g4
{[%clk 0:03:50.4]} 46. Kf5 {[%clk 0:07:54.7]} 46... g3 {[%clk 0:03:46.8]} 47.
Rb3 {[%clk 0:07:54.8]} 47... Rh4 {[%clk 0:03:46.5]} 48. Rxg3 {[%clk 0:07:53.7]}
48... Rxh5+ {[%clk 0:03:47.7]} 49. Ke6 {[%clk 0:07:54.8]} 49... Rg5 {[%clk
0:03:45.8]} 0-1